bitfinex/quotes_BTCUSD_20241001
["timestamp","ask_amount","ask_price","bid_price","bid_amount"]
[1727753208697,0.002,63655.0,63654.0,0.50161401]
[1727753213371,0.001,63655.0,63654.0,0.49961401]
[1727753213599,0.04714382,63661.0,63660.0,0.159084]
[1727753214117,0.04714382,63661.0,63660.0,0.50212096]
[1727753214351,0.30736162,63671.0,63669.0,0.1739]
[1727753214585,0.23677793,63671.0,63669.0,0.1739]
[1727753214856,0.157059,63670.0,63669.0,0.1739]
[1727753215349,0.23677793,63671.0,63669.0,0.1739]
[1727753215350,0.20411232,63671.0,63670.0,0.002]
[1727753215574,0.20411132,63672.0,63670.0,0.094]
[1727753215829,0.157056,63672.0,63671.0,0.002]
[1727753216062,0.18166602,63672.0,63671.0,0.002]
[1727753216299,0.02461002,63672.0,63671.0,0.002]
[1727753216518,0.18166402,63672.0,63671.0,0.002]
[1727753217219,0.18166402,63672.0,63671.0,0.003]
[1727753217721,0.18166402,63672.0,63671.0,0.00398428]
[1727753217944,0.02461002,63672.0,63671.0,0.00398428]
[1727753218198,0.18166402,63672.0,63671.0,0.00398428]
[1727753218418,0.157054,63672.0,63671.0,0.00298428]
[1727753219813,0.159054,63672.0,63671.0,0.00298428]
[1727753220054,0.157054,63672.0,63671.0,0.00298428]
[1727753220503,0.314099,63674.0,63672.0,0.002]
[1727753220959,0.471148,63674.0,63673.0,0.01066313]
[1727753221204,0.471148,63674.0,63673.0,0.01163754]
[1727753221683,0.475148,63674.0,63673.0,0.01163754]
[1727753221910,0.161049,63674.0,63673.0,0.01163754]
[1727753222374,0.231049,63674.0,63673.0,0.01163754]
[1727753222598,0.231049,63674.0,63672.0,0.002]
[1727753222599,0.157052,63673.0,63672.0,0.002]
[1727753222821,0.074,63674.0,63672.0,0.002]
[1727753223046,0.004,63674.0,63673.0,0.002]
[1727753223281,0.157868,63676.0,63675.0,0.002]
[1727753223526,0.000823,63676.0,63675.0,0.002]
[1727753223799,0.157868,63676.0,63675.0,0.002]
[1727753224510,0.159868,63676.0,63675.0,0.002]
[1727753225008,0.161868,63676.0,63675.0,0.00296455]
[1727753225472,0.004823,63676.0,63675.0,0.00296455]
[1727753225712,0.161868,63676.0,63675.0,0.00296455]
[1727753226464,0.159868,63676.0,63675.0,0.00296455]
[1727753226717,0.164868,63676.0,63675.0,0.00296455]
[1727753226942,0.18447697,63676.0,63675.0,0.00296455]
[1727753227192,0.18647697,63676.0,63675.0,0.00296455]
[1727753228845,0.004823,63676.0,63675.0,0.00296455]
[1727753229072,0.161868,63676.0,63675.0,0.002]
[1727753229535,0.004823,63676.0,63675.0,0.01360506]
[1727753229785,0.004823,63676.0,63675.0,0.16001155]
[1727753230043,0.004823,63676.0,63675.0,0.33371155]
[1727753235865,0.02943032,63676.0,63675.0,0.34430684]
[1727753238718,0.004823,63676.0,63675.0,0.34430684]
[1727753241991,0.02943015,63676.0,63675.0,0.34430684]
[1727753242701,0.02943015,63676.0,63675.0,0.34595284]
[1727753245967,0.02943015,63676.0,63675.0,0.34605294]
[1727753248717,0.004823,63676.0,63675.0,0.34605294]
[1727753251480,0.004823,63676.0,63675.0,0.27055294]
[1727753254861,0.05190089,63676.0,63675.0,0.27055294]
[1727753256019,0.04790089,63676.0,63675.0,0.27055294]
[1727753256497,0.04790089,63676.0,63675.0,0.27255294]
[1727753256737,0.04790089,63676.0,63675.0,0.27155294]
[1727753256738,0.000823,63676.0,63675.0,0.27155294]
[1727753256975,0.000823,63676.0,63675.0,0.27355294]
[1727753257619,0.0714967,63676.0,63675.0,0.27355294]
[1727753258755,0.0714967,63676.0,63675.0,0.27655294]
[1727753258756,0.000823,63676.0,63675.0,0.27655294]
[1727753259711,0.0950546,63676.0,63675.0,0.27655294]
[1727753261639,0.000823,63676.0,63675.0,0.27655294]
[1727753261899,0.0254301,63676.0,63675.0,0.27655294]
[1727753263070,0.000823,63676.0,63675.0,0.27655294]
[1727753264434,0.000823,63676.0,63675.0,0.11950594]
[1727753266310,0.02543002,63676.0,63675.0,0.11950594]
[1727753266537,0.02543002,63676.0,63675.0,0.27655294]
[1727753267731,0.1433677,63676.0,63675.0,0.27655294]
[1727753268700,0.11876068,63676.0,63675.0,0.27655294]
[1727753269366,0.11876068,63676.0,63675.0,0.17835294]
[1727753270284,0.19963084,63676.0,63675.0,0.01930594]
[1727753270518,0.35667584,63676.0,63675.0,0.01930594]
[1727753270728,0.35667584,63676.0,63675.0,0.0077461]
[1727753271405,0.35667584,63676.0,63675.0,0.0047461]
[1727753271613,0.36167584,63676.0,63675.0,0.0057461]
[1727753271835,0.242068,63676.0,63675.0,0.0057461]
[1727753272055,0.242068,63676.0,63675.0,0.0047461]
[1727753272056,0.237068,63676.0,63675.0,0.0047461]
[1727753272278,0.237068,63676.0,63675.0,0.0017461]
[1727753272520,0.252068,63676.0,63675.0,0.0037461]
[1727753272974,0.172868,63676.0,63675.0,0.0037461]
[1727753273197,0.182868,63676.0,63675.0,0.0047461]
[1727753274971,0.182868,63676.0,63675.0,0.004646]
[1727753275920,0.32437876,63676.0,63675.0,0.004646]
[1727753276160,0.025823,63676.0,63675.0,0.099746]
[1727753276401,0.05043107,63676.0,63675.0,0.10992631]
[1727753276861,0.03043107,63676.0,63675.0,0.10792631]
[1727753277085,0.03043107,63676.0,63675.0,0.10992631]
[1727753277329,0.03743107,63676.0,63675.0,0.11092631]
[1727753277771,0.18947607,63676.0,63675.0,0.10992631]
[1727753278211,0.18947607,63676.0,63675.0,0.11092631]
[1727753278212,0.19447607,63676.0,63675.0,0.11092631]
[1727753278663,0.169868,63676.0,63675.0,0.11092631]
[1727753279152,0.164868,63676.0,63675.0,0.10992631]
[1727753279374,0.157868,63676.0,63675.0,0.10892631]
[1727753279598,0.169868,63676.0,63675.0,0.01582631]
[1727753280075,0.162868,63676.0,63675.0,0.01282631]
[1727753280312,0.162868,63676.0,63675.0,0.01482631]
[1727753280771,0.157868,63676.0,63675.0,0.01382631]
[1727753281019,0.157868,63676.0,63675.0,0.003646]
[1727753281517,0.157868,63676.0,63675.0,0.00482917]
[1727753281750,0.157868,63676.0,63675.0,0.01382631]
[1727753281967,0.18247617,63676.0,63675.0,0.01392641]
[1727753283784,0.02543117,63676.0,63675.0,0.01392641]
[1727753284001,0.18247617,63676.0,63675.0,0.01392641]
[1727753284448,0.02543117,63676.0,63675.0,0.10832641]
[1727753284917,0.14333432,63676.0,63675.0,0.10832641]
[1727753285642,0.14333432,63676.0,63675.0,0.10932641]
[1727753286079,0.30037932,63676.0,63675.0,0.10932641]
[1727753286301,0.30037932,63676.0,63675.0,0.11032641]
[1727753286979,0.30037932,63676.0,63675.0,0.10932641]
[1727753287211,0.14333432,63676.0,63675.0,0.10932641]
[1727753287941,0.30037932,63676.0,63675.0,0.10932641]
[1727753288387,0.18247617,63676.0,63675.0,0.01492641]
[1727753288619,0.157868,63676.0,63675.0,0.01492641]
[1727753288863,0.157868,63676.0,63675.0,0.01292641]
[1727753289111,0.327868,63676.0,63675.0,0.01292641]
[1727753289340,0.327868,63676.0,63675.0,0.0027461]
[1727753290263,0.332868,63676.0,63675.0,0.0027461]
[1727753290491,0.340868,63676.0,63675.0,0.0037461]
[1727753290720,0.340868,63676.0,63675.0,0.0027461]
[1727753290948,0.49504606,63676.0,63675.0,0.0027461]
[1727753291174,0.50004606,63676.0,63675.0,0.0037461]
[1727753291396,0.340868,63676.0,63675.0,0.0037461]
[1727753291624,0.335868,63676.0,63675.0,0.0027461]
[1727753291847,0.332868,63676.0,63675.0,0.0027461]
[1727753292066,0.340868,63676.0,63675.0,0.0037461]
[1727753292289,0.340868,63676.0,63675.0,0.0027461]
[1727753292729,0.348868,63676.0,63675.0,0.0037461]
[1727753293202,0.348868,63676.0,63675.0,0.003646]
[1727753299043,0.50797561,63676.0,63675.0,0.003646]
[1727753299268,0.5079195,63676.0,63675.0,0.003646]
[1727753299520,0.48389278,63676.0,63675.0,0.003646]
[1727753299756,0.64294291,63676.0,63675.0,0.003646]
[1727753299993,0.50791813,63676.0,63675.0,0.003646]
[1727753300217,0.50713205,63676.0,63675.0,0.003646]
[1727753301191,0.50953972,63676.0,63675.0,0.003646]
[1727753301423,0.51953972,63676.0,63675.0,0.003646]
[1727753301865,0.64253972,63676.0,63675.0,0.003646]
[1727753302087,0.66715421,63676.0,63675.0,0.002646]
[1727753302311,0.66215421,63676.0,63675.0,0.002646]
[1727753302536,0.65115421,63676.0,63675.0,0.002646]
[1727753302757,0.65915421,63676.0,63675.0,0.003646]
[1727753302980,0.65415421,63676.0,63675.0,0.002646]
[1727753303937,0.65815421,63676.0,63675.0,0.003646]
[1727753305793,0.63515421,63676.0,63675.0,0.003646]
[1727753306255,0.53515421,63676.0,63675.0,0.003646]
[1727753306470,0.63515421,63676.0,63675.0,0.003646]
[1727753307385,0.53855421,63676.0,63675.0,0.003646]
[1727753307609,0.52855421,63676.0,63675.0,0.003646]
[1727753308304,0.68741727,63676.0,63675.0,0.003646]
[1727753308535,0.52855421,63676.0,63675.0,0.003646]
[1727753308767,0.50393972,63676.0,63675.0,0.003646]
[1727753309447,0.66280318,63676.0,63675.0,0.003646]
[1727753309638,0.50393972,63676.0,63675.0,0.003646]
[1727753311992,0.53355247,63676.0,63675.0,0.003646]
[1727753313539,0.60355247,63676.0,63675.0,0.003646]
[1727753314424,0.59855247,63676.0,63675.0,0.003646]
[1727753314653,0.60355247,63676.0,63675.0,0.003646]
[1727753318019,0.62696718,63676.0,63675.0,0.003646]
[1727753318236,0.60355247,63676.0,63675.0,0.003646]
[1727753318727,0.57893972,63676.0,63675.0,0.003646]
[1727753321919,0.68233972,63676.0,63675.0,0.003646]
[1727753323299,0.70695352,63676.0,63675.0,0.003646]
[1727753323750,0.93355495,63676.0,63675.0,0.003646]
[1727753325043,0.93355495,63676.0,63675.0,0.0002507]
[1727753325260,0.93355495,63676.0,63671.0,0.001646]
[1727753325261,0.247154,63672.0,63671.0,0.001646]
[1727753325498,0.61691964,63672.0,63671.0,0.001646]
[1727753325723,0.84352107,63672.0,63671.0,0.001646]
[1727753326158,1.07533284,63672.0,63671.0,0.001646]
[1727753326414,1.23177962,63672.0,63671.0,0.001646]
[1727753326636,1.23177962,63672.0,63671.0,0.002646]
[1727753326637,1.24477962,63672.0,63671.0,0.002646]
[1727753326861,1.25877962,63672.0,63671.0,0.003646]
[1727753328208,1.2567961,63672.0,63671.0,0.003646]
[1727753330253,1.02503928,63672.0,63671.0,0.003646]
[1727753330491,1.2567961,63672.0,63671.0,0.003646]
[1727753331192,1.2567961,63672.0,63671.0,0.00027979]
[1727753331902,1.10034932,63672.0,63671.0,0.00027979]
[1727753332144,1.12496486,63672.0,63671.0,0.00027979]
[1727753332393,1.12496486,63672.0,63658.0,0.0498407]
[1727753332394,0.157086,63659.0,63658.0,0.0498407]
[1727753332641,0.43315164,63659.0,63658.0,0.0498407]
[1727753332884,0.157096,63655.0,63654.0,0.001646]
[1727753333138,0.27670384,63655.0,63654.0,0.001646]
[1727753335487,0.28670384,63655.0,63654.0,0.001646]
[1727753335972,0.29570384,63655.0,63654.0,0.001646]
[1727753339781,0.176096,63655.0,63654.0,0.168546]
[1727753340233,0.31734088,63655.0,63654.0,0.168546]
[1727753340455,0.176096,63655.0,63654.0,0.168546]
[1727753342111,0.20071438,63655.0,63654.0,0.168546]
[1727753343244,0.32032222,63655.0,63654.0,0.168546]
[1727753343475,0.32032222,63655.0,63654.0,0.1789404]
[1727753343706,0.32032222,63655.0,63654.0,0.168546]
[1727753348443,0.29570384,63655.0,63654.0,0.168546]
[1727753351947,0.32032202,63655.0,63654.0,0.168546]
[1727753353296,0.32032202,63655.0,63654.0,0.093246]
[1727753355364,0.31032202,63655.0,63654.0,0.093246]
[1727753355496,0.32032202,63655.0,63654.0,0.093246]
[1727753355700,0.31132202,63655.0,63654.0,0.093246]
[1727753356088,0.32032202,63655.0,63654.0,0.093246]
[1727753356267,0.31032202,63655.0,63654.0,0.093246]
[1727753356592,0.30132202,63655.0,63654.0,0.093246]
[1727753357029,0.31032202,63655.0,63654.0,0.093246]
[1727753357530,0.32032202,63655.0,63654.0,0.093246]
[1727753357986,0.20071418,63655.0,63654.0,0.093246]
[1727753358669,0.176096,63655.0,63654.0,0.093246]
[1727753361910,0.20071438,63655.0,63654.0,0.093246]
[1727753363262,0.34199596,63655.0,63654.0,0.093246]
[1727753365156,0.20071438,63655.0,63654.0,0.093246]
[1727753367395,0.34209361,63655.0,63654.0,0.093246]
[1727753368685,0.31747523,63655.0,63654.0,0.093246]
[1727753368898,0.31757997,63655.0,63654.0,0.093246]
[1727753369544,0.167096,63655.0,63654.0,0.093246]
[1727753370006,0.176096,63655.0,63654.0,0.093246]
[1727753370467,0.167096,63655.0,63654.0,0.093246]
[1727753370685,0.174096,63655.0,63654.0,0.093246]
[1727753370906,0.164096,63655.0,63654.0,0.093246]
[1727753371353,0.172096,63655.0,63654.0,0.093246]
[1727753372002,0.19671385,63655.0,63654.0,0.093246]
[1727753377352,0.51669178,63655.0,63654.0,0.001646]
[1727753377569,0.27991385,63655.0,63654.0,0.001646]
[1727753378880,0.19671385,63655.0,63654.0,0.001646]
[1727753381342,0.35595643,63655.0,63654.0,0.001646]
[1727753382001,0.33133858,63655.0,63654.0,0.001646]
[1727753384241,0.172096,63655.0,63654.0,0.001646]
[1727753385529,0.33148268,63655.0,63654.0,0.001646]
[1727753385997,0.32448268,63655.0,63654.0,0.001646]
[1727753386219,0.31648268,63655.0,63654.0,0.001646]
[1727753386470,0.03261764,63655.0,63654.0,0.003646]
[1727753386705,0.18971364,63655.0,63654.0,0.01204633]
[1727753386917,0.18971364,63655.0,63654.0,0.0029328]
[1727753387117,0.19671364,63655.0,63654.0,0.0029328]
[1727753387569,0.18971364,63655.0,63654.0,0.0029328]
[1727753387816,0.18171364,63655.0,63654.0,0.0029328]
[1727753388046,0.19071364,63655.0,63654.0,0.0029328]
[1727753388486,0.35310032,63655.0,63654.0,0.0029328]
[1727753388741,0.32848268,63655.0,63654.0,0.0029328]
[1727753388974,0.32848268,63655.0,63654.0,0.001646]
[1727753389440,0.169096,63655.0,63654.0,0.001646]
[1727753391137,0.32847699,63655.0,63654.0,0.001646]
[1727753391594,0.32847843,63655.0,63654.0,0.001646]
[1727753391813,0.32847734,63655.0,63654.0,0.001646]
[1727753393013,0.35309501,63655.0,63654.0,0.003646]
[1727753394165,0.3530981,63655.0,63654.0,0.003646]
[1727753394382,0.19371367,63655.0,63654.0,0.003646]
[1727753395590,0.19371367,63655.0,63654.0,0.001646]
[1727753398586,0.169096,63655.0,63654.0,0.001646]
[1727753403176,0.3284813,63655.0,63654.0,0.001646]
[1727753405467,0.3284813,63655.0,63654.0,0.003646]
[1727753405914,0.3284813,63655.0,63654.0,0.001646]
[1727753406341,0.3284813,63655.0,63654.0,0.003646]
[1727753407577,0.32848623,63655.0,63654.0,0.003646]
[1727753408792,0.32848623,63655.0,63654.0,0.4160028]
[1727753408793,0.17139023,63655.0,63654.0,0.4160028]
[1727753409031,0.012,63655.0,63654.0,0.4975028]
[1727753409957,0.002,63655.0,63654.0,0.4975028]
[1727753410419,0.07077366,63655.0,63654.0,0.4975028]
[1727753410649,0.07277366,63655.0,63654.0,0.4975028]
[1727753411101,0.07077366,63655.0,63654.0,0.4995028]
[1727753411352,0.07077366,63656.0,63655.0,0.250996]
[1727753411606,0.07077366,63656.0,63655.0,0.4074538]
[1727753412082,0.09537185,63656.0,63655.0,0.2503578]
[1727753412303,0.09537185,63656.0,63655.0,0.4074538]
[1727753412522,0.09535817,63656.0,63655.0,0.4074538]
[1727753412968,0.09635817,63656.0,63655.0,0.4094538]
[1727753413202,0.07276869,63656.0,63655.0,0.4094538]
[1727753413423,0.02561451,63656.0,63655.0,0.4094538]
[1727753414311,0.07376769,63656.0,63655.0,0.4114538]
[1727753414965,0.04915318,63656.0,63655.0,0.4114538]
[1727753415193,0.04815318,63656.0,63655.0,0.4869538]
[1727753415421,0.001,63656.0,63655.0,0.4869538]
[1727753415694,0.002,63656.0,63655.0,0.4889538]
[1727753415916,0.002,63656.0,63655.0,0.4890539]
[1727753416142,0.001,63656.0,63655.0,0.4870539]
[1727753416368,0.001,63656.0,63655.0,0.60666174]
[1727753417543,0.002,63656.0,63655.0,0.60866174]
[1727753417792,0.002,63656.0,63655.0,0.71903003]
[1727753418017,0.002,63656.0,63655.0,0.79275849]
[1727753418256,0.02461279,63658.0,63657.0,0.437691]
[1727753418481,0.02461279,63658.0,63657.0,0.61338726]
[1727753419373,0.23677793,63663.0,63662.0,0.437879]
[1727753419592,0.23677793,63663.0,63662.0,0.71394464]
[1727753420292,0.23760093,63671.0,63664.0,0.0977]
[1727753420522,0.23760093,63671.0,63670.0,0.256759]
[1727753420766,0.30760093,63671.0,63670.0,0.337359]
[1727753421216,0.000823,63671.0,63670.0,0.33856684]
[1727753421440,0.000823,63671.0,63670.0,0.34759282]
[1727753421879,0.001823,63671.0,63670.0,0.34759282]
[1727753422575,0.071823,63671.0,63670.0,0.34759282]
[1727753422789,0.071823,63671.0,63670.0,0.26699282]
[1727753423226,0.001823,63671.0,63670.0,0.26699282]
[1727753423701,0.071823,63671.0,63670.0,0.26699282]
[1727753426525,0.0964332,63671.0,63670.0,0.26699282]
[1727753428708,0.071823,63671.0,63670.0,0.26699282]
[1727753429682,0.071823,63671.0,63670.0,0.52345062]
[1727753429914,0.071823,63671.0,63670.0,0.60235062]
[1727753431355,0.070823,63671.0,63670.0,0.60535062]
[1727753432057,0.070823,63671.0,63670.0,0.60235062]
[1727753432279,0.000823,63671.0,63670.0,0.61970232]
[1727753432506,0.000823,63671.0,63670.0,0.60535062]
[1727753432733,0.000823,63671.0,63670.0,0.60235062]
[1727753432970,0.001823,63671.0,63670.0,0.60735062]
[1727753433808,0.001823,63671.0,63670.0,0.61045072]
[1727753434163,0.000823,63671.0,63670.0,0.60245072]
[1727753434649,0.001823,63671.0,63670.0,0.61445072]
[1727753434885,0.001823,63671.0,63670.0,0.61045072]
[1727753435129,0.000823,63671.0,63670.0,0.60245072]
[1727753435375,0.001823,63671.0,63670.0,0.60945072]
[1727753435608,0.002823,63671.0,63670.0,0.61745072]
[1727753436087,0.02743018,63671.0,63670.0,0.61745072]
[1727753438781,0.002823,63671.0,63670.0,0.61745072]
[1727753442018,0.002823,63671.0,63670.0,0.53855072]
[1727753444484,0.002823,63671.0,63670.0,0.54019672]
[1727753444925,0.002823,63671.0,63670.0,0.44249672]
[1727753445628,0.002823,63671.0,63670.0,0.02697992]
[1727753446083,0.002823,63671.0,63670.0,0.0167461]
[1727753446308,0.1844903,63671.0,63670.0,0.0167461]
[1727753446546,0.1844903,63671.0,63670.0,0.02693946]
[1727753446780,0.1834903,63671.0,63670.0,0.0087461]
[1727753447005,0.1834903,63671.0,63670.0,0.0107461]
[1727753447456,0.1834903,63671.0,63670.0,0.0087461]
[1727753447715,0.1834903,63671.0,63670.0,0.0017461]
[1727753447716,0.1824903,63671.0,63670.0,0.0017461]
[1727753447968,0.1874903,63671.0,63670.0,0.0017461]
[1727753448195,0.1874903,63671.0,63670.0,0.0037461]
[1727753448196,0.23445668,63671.0,63670.0,0.0037461]
[1727753448414,0.22945668,63671.0,63670.0,0.0017461]
[1727753448629,0.20484638,63671.0,63670.0,0.0027461]
[1727753448849,0.20984638,63671.0,63670.0,0.0027461]
[1727753449794,0.21384638,63671.0,63670.0,0.0027461]
[1727753450271,0.23732958,63671.0,63670.0,0.0027461]
[1727753451903,0.26193999,63671.0,63670.0,0.002646]
[1727753452352,0.28542318,63671.0,63670.0,0.002646]
[1727753453258,0.19149041,63671.0,63670.0,0.002646]
[1727753454271,0.30890638,63671.0,63670.0,0.002646]
[1727753454644,0.28429597,63671.0,63670.0,0.002646]
[1727753457344,0.16688,63671.0,63670.0,0.002646]
[1727753457802,0.19149058,63671.0,63670.0,0.002646]
[1727753458875,0.16688,63671.0,63670.0,0.002646]
[1727753461427,0.009823,63671.0,63670.0,0.002646]
[1727753461891,0.009823,63671.0,63670.0,0.01286866]
[1727753462092,0.009823,63671.0,63670.0,0.00385384]
[1727753462234,0.16688,63671.0,63670.0,0.00385384]
[1727753462924,0.16688,63671.0,63670.0,0.002646]
[1727753463138,0.25728,63671.0,63670.0,0.002646]
[1727753465334,0.33768,63671.0,63670.0,0.002646]
[1727753465548,0.49662165,63671.0,63670.0,0.002646]
[1727753465782,0.33768,63671.0,63670.0,0.002646]
[1727753466365,0.43229465,63671.0,63670.0,0.002646]
[1727753466610,0.58717188,63671.0,63670.0,0.002646]
[1727753466868,0.42829465,63671.0,63670.0,0.002646]
[1727753467096,0.58675245,63671.0,63670.0,0.001646]
[1727753467522,0.58775245,63671.0,63670.0,0.001646]
[1727753467725,0.57975245,63671.0,63670.0,0.001646]
[1727753467932,0.60775245,63671.0,63670.0,0.001646]
[1727753468817,0.5831378,63671.0,63670.0,0.001646]
[1727753469898,0.83897224,63671.0,63670.0,0.001646]
[1727753470106,1.0697134,63671.0,63670.0,0.001646]
[1727753470318,1.22854068,63671.0,63670.0,0.001646]
[1727753471375,1.08770624,63671.0,63670.0,0.001646]
[1727753471582,0.882029,63671.0,63670.0,0.001646]
[1727753471959,0.877029,63671.0,63670.0,0.001646]
[1727753472219,0.59699811,63671.0,63670.0,0.001646]
[1727753472427,0.098823,63671.0,63670.0,0.001646]
[1727753472652,0.37345784,63671.0,63670.0,0.001646]
[1727753472859,0.18588,63671.0,63670.0,0.001646]
[1727753473256,0.12287822,63671.0,63670.0,0.001646]
[1727753473732,0.27993522,63671.0,63670.0,0.0187355]
[1727753473941,0.27993815,63671.0,63670.0,0.00285384]
[1727753474557,0.26593815,63671.0,63670.0,0.00285384]
[1727753474700,0.25193815,63671.0,63670.0,0.00285384]
[1727753474900,0.41894782,63671.0,63670.0,0.00285384]
[1727753475104,0.27589082,63671.0,63670.0,0.00285384]
[1727753475505,0.27589082,63671.0,63670.0,0.15991284]
[1727753475706,0.014823,63671.0,63670.0,0.15991284]
[1727753475917,0.028823,63671.0,63670.0,0.15991284]
[1727753476129,0.09936426,63671.0,63670.0,0.15991284]
[1727753476393,0.08536426,63671.0,63670.0,0.15991284]
[1727753476596,0.014823,63671.0,63670.0,0.15991284]
[1727753476770,0.023823,63671.0,63670.0,0.15991284]
[1727753477417,0.19096343,63671.0,63670.0,0.15991284]
[1727753477812,0.0484355,63671.0,63670.0,0.15991284]
[1727753478220,0.023823,63671.0,63670.0,0.00285384]
[1727753478418,0.18088,63671.0,63670.0,0.00285384]
[1727753478634,0.44195882,63671.0,63670.0,0.00285384]
[1727753478843,0.26278,63671.0,63670.0,0.001646]
[1727753479248,0.33278,63671.0,63670.0,0.001646]
[1727753482376,0.35739403,63671.0,63670.0,0.001646]
[1727753483240,0.49859585,63671.0,63670.0,0.001646]
[1727753483448,0.52440974,63671.0,63670.0,0.001646]
[1727753483649,0.44251662,63671.0,63670.0,0.001646]
[1727753484075,0.44251662,63671.0,63670.0,0.01872879]
[1727753484718,0.28545962,63671.0,63670.0,0.01872879]
[1727753485986,0.16551639,63671.0,63670.0,0.26928779]
[1727753486202,0.11843703,63671.0,63670.0,0.26928779]
[1727753486834,0.11843703,63671.0,63670.0,0.43088655]
[1727753487175,0.09543703,63671.0,63670.0,0.50764559]
[1727753487553,0.09543703,63671.0,63670.0,0.60764559]
[1727753487554,0.03443703,63671.0,63670.0,0.60764559]
[1727753487766,0.03443703,63671.0,63670.0,0.62686941]
[1727753487984,0.009823,63671.0,63670.0,0.62786941]
[1727753488423,0.009823,63671.0,63670.0,0.60864559]
[1727753488861,0.005823,63671.0,63670.0,0.60864559]
[1727753489084,0.005823,63671.0,63670.0,0.61064559]
[1727753489509,0.000823,63671.0,63670.0,0.60764559]
[1727753489721,0.000823,63671.0,63670.0,0.61064559]
[1727753489937,0.001823,63671.0,63670.0,0.61264559]
[1727753490621,0.001823,63671.0,63670.0,0.60764559]
[1727753490882,0.001823,63671.0,63670.0,0.61264559]
[1727753491122,0.002823,63671.0,63670.0,0.61264559]
[1727753491329,0.001823,63671.0,63670.0,0.61274569]
[1727753491538,0.02643013,63671.0,63670.0,0.61274569]
[1727753491967,0.001823,63671.0,63670.0,0.61274569]
[1727753492457,0.000823,63671.0,63670.0,0.60774569]
[1727753492672,0.001823,63671.0,63670.0,0.61174569]
[1727753492896,0.002823,63671.0,63670.0,0.61674569]
[1727753493135,0.001823,63671.0,63670.0,0.61274569]
[1727753493343,0.001823,63671.0,63670.0,0.61174569]
[1727753493545,0.001823,63671.0,63670.0,0.60774569]
[1727753493989,0.002823,63671.0,63670.0,0.61174569]
[1727753494202,0.002823,63671.0,63670.0,0.61274569]
[1727753494597,0.003823,63671.0,63670.0,0.61674569]
[1727753495501,0.002823,63671.0,63670.0,0.61174569]
[1727753495730,0.002823,63671.0,63670.0,0.61674569]
[1727753495954,0.001823,63671.0,63670.0,0.61274569]
[1727753496172,0.001823,63671.0,63670.0,0.61674569]
[1727753496410,0.001823,63671.0,63670.0,0.61174569]
[1727753496631,0.002823,63671.0,63670.0,0.61274569]
[1727753496865,0.003823,63671.0,63670.0,0.61674569]
[1727753497102,0.001823,63671.0,63670.0,0.60774569]
[1727753497580,0.003823,63671.0,63670.0,0.61674569]
[1727753500428,0.003823,63671.0,63670.0,0.63974569]
[1727753500664,0.003823,63671.0,63670.0,0.69540416]
[1727753501384,0.002823,63671.0,63670.0,0.69040416]
[1727753501615,0.002823,63671.0,63670.0,0.69240416]
[1727753502334,0.002823,63671.0,63670.0,0.68840416]
[1727753502335,0.000823,63671.0,63670.0,0.68840416]
[1727753502599,0.000823,63671.0,63670.0,0.69840416]
[1727753502600,0.001823,63671.0,63670.0,0.69840416]
[1727753502824,0.002823,63671.0,63670.0,0.70940416]
[1727753503050,0.000823,63675.0,63674.0,0.161049]
[1727753503278,0.000823,63675.0,63674.0,3.14542455]
[1727753503508,0.000823,63675.0,63674.0,3.14347241]
[1727753503738,0.23677793,63681.0,63680.0,0.64075303]
[1727753504005,0.23677793,63681.0,63680.0,0.82870083]
[1727753504251,0.02460269,63690.0,63684.0,0.259025]
[1727753504498,0.02460269,63690.0,63684.0,0.77734073]
[1727753504741,0.02460269,63690.0,63684.0,0.77420083]
[1727753505902,0.02460269,63690.0,63684.0,0.78420083]
[1727753506635,0.02460269,63690.0,63684.0,0.79909726]
[1727753506869,0.02460269,63690.0,63684.0,0.80909726]
[1727753507100,0.02460269,63690.0,63684.0,0.81023604]
[1727753508743,0.0811,63707.0,63684.0,0.81023604]
[1727753511507,0.0811,63707.0,63684.0,0.82590445]
[1727753512374,0.0811,63707.0,63684.0,0.84498367]
[1727753512591,0.0811,63707.0,63684.0,0.86798367]
[1727753513055,0.26137888,63698.0,63684.0,3.45746367]
[1727753513263,0.26137888,63698.0,63684.0,3.43895467]
[1727753513469,0.26137888,63698.0,63684.0,3.36017867]
[1727753513686,0.26137888,63698.0,63684.0,3.28045067]
[1727753513925,0.26137888,63698.0,63684.0,2.95239467]
[1727753514151,0.26137888,63698.0,63684.0,2.09644868]
[1727753514369,0.26137888,63698.0,63684.0,1.88608968]
[1727753514631,1e-06,63685.0,63684.0,1.72835868]
[1727753515594,1e-06,63685.0,63684.0,1.75984868]
[1727753515857,1e-06,63685.0,63684.0,1.10444968]
[1727753516316,1e-06,63685.0,63684.0,1.08444968]
[1727753516547,1e-06,63685.0,63684.0,1.10844968]
[1727753516767,1e-06,63685.0,63684.0,1.09644968]
[1727753517235,1e-06,63685.0,63684.0,2.22214675]
[1727753518193,0.23677793,63691.0,63690.0,0.64692803]
[1727753518419,0.23677793,63691.0,63690.0,1.70482612]
[1727753518634,0.23677793,63691.0,63690.0,1.70654124]
[1727753518877,0.23677793,63698.0,63697.0,0.435493]
[1727753519127,0.23677793,63698.0,63697.0,0.79330412]
[1727753519362,0.23677793,63698.0,63697.0,0.79498473]
[1727753519593,0.23677793,63709.0,63708.0,0.158966]
[1727753520080,0.30677793,63709.0,63708.0,0.16059239]
[1727753520330,0.07,63709.0,63708.0,0.16059239]
[1727753521627,0.07,63709.0,63708.0,0.15859239]
[1727753521841,0.2438,63709.0,63708.0,0.00162639]
[1727753522088,0.2448,63709.0,63708.0,0.00162639]
[1727753522361,0.0771,63708.0,63703.0,0.156976]
[1727753522627,0.0771,63708.0,63705.0,0.156972]
[1727753522900,0.0245978,63707.0,63705.0,0.156972]
[1727753523150,0.0245978,63707.0,63701.0,0.156981]
[1727753523151,0.0833,63706.0,63701.0,0.156981]
[1727753523357,0.0833,63706.0,63703.0,0.156977]
[1727753523593,0.0833,63706.0,63700.0,0.313971]
[1727753523826,0.0833,63706.0,63702.0,0.156979]
[1727753524078,0.1533,63706.0,63702.0,0.156979]
[1727753524329,0.1533,63706.0,63701.0,0.313965]
[1727753524559,0.1533,63706.0,63703.0,0.156976]
[1727753525271,0.1543,63706.0,63703.0,0.156976]
[1727753525617,0.1543,63706.0,63703.0,0.157046]